fUSD/lending_fUSD_20250507
["ID","MTS","AMOUNT","RATE_DAILY","PERIOD"]
[360156728,1746581431839,-1200.0,0.00019532,2]
[360156729,1746581431850,-300.0,0.00019532,2]
[360156730,1746581431860,-2249.28392155,0.00019533,2]
[360156731,1746581431869,-1398.05547478,0.00019534,2]
[360156732,1746581431878,-207.4,0.00019534,2]
[360156733,1746581431889,-2249.28392155,0.00019544,2]
[360156734,1746581431898,-375.74654584,0.00019545,2]
[360156735,1746581431924,-302.74326315,0.00019545,2]
[360156736,1746581431936,-719.56566579,0.00019545,2]
[360156737,1746581431946,-618.95469465,0.00019545,2]
[360156738,1746581431957,-231.04530535,0.00019545,2]
[360156739,1746581431966,-20.00297499,0.00019545,2]
[360156751,1746581437474,-479.99702501,0.00019545,2]
[360156753,1746581437484,-500.0,0.00019545,2]
[360156755,1746581437493,-500.0,0.00019545,2]
[360156757,1746581437504,-149.83535754,0.00019545,2]
[360156758,1746581437515,-350.16464246,0.00019545,2]
[360156759,1746581437525,-500.0,0.00019545,2]
[360156760,1746581437534,-500.0,0.00019545,2]
[360156761,1746581437544,-500.0,0.00019545,2]
[360156762,1746581437553,-500.0,0.00019545,2]
[360156763,1746581437562,-6.35334518,0.00019545,2]
[360156764,1746581437590,-493.64665482,0.00019545,2]
[360156765,1746581437600,-500.0,0.00019545,2]
[360156766,1746581437609,-14.21912668,0.00019545,2]
[360156767,1746581437621,-485.78087332,0.00019545,2]
[360156768,1746581437630,-500.0,0.00019545,2]
[360156769,1746581437639,-500.0,0.00019545,2]
[360156770,1746581437649,-500.0,0.00019545,2]
[360156771,1746581437659,-311.81084296,0.00019545,2]
[360156772,1746581437668,-500.0,0.00019545,2]
[360156773,1746581437678,-500.0,0.00019545,2]
[360156774,1746581437687,-344.3789171,0.00019545,2]
[360156775,1746581437794,-155.6210829,0.00019545,2]
[360156776,1746581437804,-500.0,0.00019545,2]
[360156777,1746581437814,-500.0,0.00019545,2]
[360156778,1746581437823,-500.0,0.00019545,2]
[360156779,1746581437834,-150.99,0.00019546,2]
[360156780,1746581437843,-8229.55,0.00019546,2]
[360156781,1746581437856,-6441.04,0.00019546,2]
[360156782,1746581437866,-58714.26,0.00019546,2]
[360156783,1746581437875,-1130.0,0.00019546,2]
[360156784,1746581437886,-893.01,0.00019546,2]
[360156785,1746581437896,-499.99,0.00019547,2]
[360156786,1746581437906,-2249.28392155,0.00019555,2]
[360156787,1746581437916,-999.99,0.00019556,2]
[360156788,1746581437926,-942.01,0.00019556,2]
[360156789,1746581437935,-151.0,0.00019556,2]
[360156790,1746581437944,-151.0,0.00019556,2]
[360156791,1746581437954,-155.0,0.00019556,2]
[360156792,1746581437964,-151.0,0.00019556,2]
[360156793,1746581437973,-668.65185757,0.00019556,2]
[360156794,1746581437983,-151.0,0.00019556,2]
[360156795,1746581437992,-1398.05547478,0.00019556,2]
[360156796,1746581438002,-1990.01648036,0.00019558,2]
[360156797,1746581438011,-2249.28392155,0.00019567,2]
[360156798,1746581438021,-465.59,0.00019567,2]
[360156799,1746581438030,-1398.05547478,0.00019568,2]
[360156800,1746581438040,-2518.70159943,0.00019568,2]
[360156802,1746581438061,-1486.05511616,0.00019568,2]
[360156803,1746581438076,-424.538785,0.00019568,2]
[360156804,1746581438087,-9784.67879938,0.00019568,2]
[360156805,1746581439721,-4635.03000003,0.00019568,2]
[360156806,1746581439730,-162.16791959,0.00019568,2]
[360156807,1746581439739,-6316.221,0.00019575,2]
[360156808,1746581439749,-283.645,0.00019575,2]
[360156809,1746581439758,-203.21344205,0.00019575,3]
[360156810,1746581439767,-1031.84237696,0.00019575,2]
[360156811,1746581439776,-401.15006242,0.00019575,2]
[360156812,1746581439785,-1000.0,0.00019576,2]
[360156813,1746581439794,-450.0,0.00019576,2]
[360156814,1746581439803,-500.0,0.00019576,2]
[360156815,1746581439813,-500.0,0.00019576,2]
[360156816,1746581439822,-602.99008471,0.00019576,2]
[360156817,1746581439831,-500.0,0.00019576,2]
[360156818,1746581439841,-450.0,0.00019576,2]
[360156819,1746581439850,-610.71,0.00019576,2]
[360156820,1746581439862,-450.0,0.00019576,2]
[360156821,1746581439872,-489.28022793,0.00019576,2]
[360156822,1746581439881,-1805.81,0.00019576,2]
[360156823,1746581439891,-2041.53,0.00019576,2]
[360156824,1746581439900,-450.0,0.00019576,2]
[360156825,1746581439910,-450.0,0.00019576,2]
[360156826,1746581439919,-450.0,0.00019576,2]
[360156827,1746581439929,-1353.91,0.00019576,2]
[360156828,1746581439939,-599.79,0.00019576,2]
[360156829,1746581439949,-450.0,0.00019576,2]
[360156830,1746581439959,-533.34,0.00019576,2]
[360156831,1746581439968,-450.0,0.00019576,2]
[360156832,1746581439977,-450.0,0.00019576,2]
[360156833,1746581439987,-450.0,0.00019576,2]
[360156834,1746581439996,-450.0,0.00019576,2]
[360156835,1746581440006,-450.0,0.00019576,2]
[360156836,1746581440015,-450.0,0.00019576,2]
[360156837,1746581440025,-450.0,0.00019576,2]
[360156838,1746581440034,-450.0,0.00019576,2]
[360156839,1746581440044,-450.0,0.00019576,2]
[360156840,1746581440053,-432.38084859,0.00019576,2]
[360156841,1746581440063,-450.0,0.00019576,2]
[360156842,1746581440073,-450.0,0.00019576,2]
[360156843,1746581440083,-612.57,0.00019576,2]
[360156844,1746581440092,-612.57,0.00019576,2]
[360156845,1746581440101,-550.0,0.00019576,2]
[360156846,1746581440121,-467.81,0.00019576,2]
[360156847,1746581440136,-467.81,0.00019576,2]
[360156848,1746581440156,-450.0,0.00019576,2]
[360156849,1746581440174,-450.0,0.00019576,2]
[360156850,1746581440189,-490.0,0.00019576,2]
[360156851,1746581440208,-450.0,0.00019576,2]
[360156852,1746581440226,-450.0,0.00019576,2]
[360156853,1746581440244,-450.0,0.00019576,2]
[360156854,1746581440262,-450.0,0.00019576,2]
[360156855,1746581440280,-598.55798153,0.00019576,2]
[360156856,1746581440298,-450.0,0.00019576,2]
[360156857,1746581440313,-450.0,0.00019576,2]
[360156858,1746581440329,-917.95,0.00019576,2]
[360156859,1746581440348,-917.95,0.00019576,2]
[360156860,1746581440360,-460.64,0.00019576,2]
[360156861,1746581440376,-554.00953404,0.00019576,2]
[360156862,1746581440390,-579.66,0.00019576,2]
[360156863,1746581440403,-579.66,0.00019576,2]
[360156864,1746581440420,-450.0,0.00019576,2]
[360156865,1746581440435,-450.0,0.00019576,2]
[360156866,1746581440449,-450.0,0.00019576,2]
[360156867,1746581440462,-450.0,0.00019576,2]
[360156868,1746581440476,-1781.28,0.00019576,2]
[360156869,1746581440490,-1781.28,0.00019576,2]
[360156870,1746581440504,-1987.53,0.00019576,2]
[360156871,1746581440518,-1987.53,0.00019576,2]
[360156872,1746581440531,-450.0,0.00019576,2]
[360156873,1746581440546,-1539.1,0.00019576,2]
[360156874,1746581440560,-1628.14,0.00019576,2]
[360156875,1746581440574,-450.0,0.00019576,2]
[360156876,1746581440588,-450.0,0.00019576,2]
[360156877,1746581440602,-493.49,0.00019576,2]
[360156878,1746581440616,-450.0,0.00019576,2]
[360156879,1746581440630,-450.0,0.00019576,2]
[360156880,1746581440644,-450.0,0.00019576,2]
[360156882,1746581440658,-450.0,0.00019576,2]
[360156885,1746581440673,-450.0,0.00019576,2]
[360156886,1746581440687,-450.0,0.00019576,2]
[360156887,1746581440701,-836.9,0.00019576,2]
[360156888,1746581440716,-450.0,0.00019576,2]
[360156889,1746581440730,-450.0,0.00019576,2]
[360156890,1746581440744,-450.0,0.00019576,2]
[360156891,1746581440759,-450.0,0.00019576,2]
[360156892,1746581440772,-865.608865,0.00019576,2]
[360156893,1746581440786,-834.51,0.00019576,2]
[360156894,1746581440800,-865.608865,0.00019576,2]
[360156895,1746581440813,-725.86,0.00019576,2]
[360156896,1746581440827,-1031.99,0.00019576,2]
[360156897,1746581440840,-1031.99,0.00019576,2]
[360156898,1746581440855,-450.0,0.00019576,2]
[360156899,1746581440870,-450.0,0.00019576,2]
[360156900,1746581440887,-474.60916901,0.00019576,2]
[360156901,1746581440901,-450.0,0.00019576,2]
[360156902,1746581440915,-469.03480055,0.00019576,2]
[360156903,1746581440930,-450.0,0.00019576,2]
[360156904,1746581440944,-471.29420028,0.00019576,2]
[360156905,1746581440959,-450.0,0.00019576,2]
[360156906,1746581440973,-450.0,0.00019576,2]
[360156907,1746581440988,-450.0,0.00019576,2]
[360156908,1746581441001,-450.0,0.00019576,2]
[360156909,1746581441015,-450.0,0.00019576,2]
[360156910,1746581441029,-450.0,0.00019576,2]
[360156911,1746581441044,-2009.99,0.00019576,2]
[360156912,1746581441059,-2009.99,0.00019576,2]
[360156913,1746581441073,-450.0,0.00019576,2]
[360156914,1746581441082,-450.0,0.00019576,2]
[360156915,1746581441092,-1988.990205,0.00019576,2]
[360156916,1746581441101,-1988.990205,0.00019576,2]
[360156917,1746581441110,-512.52390455,0.00019576,2]
[360156918,1746581441119,-574.54248489,0.00019576,2]
[360156919,1746581441302,-450.0,0.00019576,2]
[360156920,1746581441325,-481.87940098,0.00019576,2]
[360156921,1746581441334,-455.12451999,0.00019576,2]
[360156922,1746581441344,-370.52096204,0.00019576,2]
[360156923,1746581441353,-488.40915827,0.00019576,2]
[360156924,1746581441364,-529.785275,0.00019576,2]
[360156925,1746581441374,-450.0,0.00019576,2]
[360156926,1746581441383,-70190.60145612,0.00019577,2]
[360156927,1746581441395,-450.0,0.00019577,2]
[360156928,1746581441404,-450.0,0.00019577,2]
[360156929,1746581441414,-450.0,0.00019577,2]
[360156930,1746581441424,-503.19999997,0.00019577,2]
[360156931,1746581441435,-450.0,0.00019577,2]
[360156932,1746581441444,-450.0,0.00019577,2]
[360156933,1746581441454,-502.73931556,0.00019577,2]
[360156934,1746581441464,-450.0,0.00019577,2]
[360156935,1746581441474,-450.0,0.00019577,2]
[360156936,1746581441483,-450.0,0.00019577,2]
[360156937,1746581441492,-153.79701031,0.00019577,2]
[360156938,1746581441502,-450.0,0.00019577,2]
[360156939,1746581441511,-450.0,0.00019577,2]
[360156940,1746581441520,-450.0,0.00019577,2]
[360156941,1746581441529,-470.0,0.00019577,2]
[360156942,1746581441538,-450.0,0.00019577,2]
[360156943,1746581441548,-382.0858766,0.00019577,2]
[360156944,1746581441557,-450.0,0.00019577,2]
[360156945,1746581441567,-450.0,0.00019577,2]
[360156946,1746581441576,-450.0,0.00019577,2]
[360156947,1746581441586,-450.0,0.00019577,2]
[360156948,1746581441595,-170.04288718,0.00019577,2]
[360156949,1746581441604,-250.0,0.00019577,2]
[360156950,1746581441614,-450.0,0.00019577,2]
[360156951,1746581441623,-450.0,0.00019577,2]
[360156952,1746581441632,-450.0,0.00019577,2]
[360156953,1746581441641,-535.9037044,0.00019577,2]
[360156954,1746581441653,-450.0,0.00019577,2]
[360156955,1746581441663,-500.0,0.00019577,2]
[360156956,1746581441675,-450.0,0.00019577,2]
[360156957,1746581441687,-450.0,0.00019577,2]
[360156958,1746581441696,-450.0,0.00019577,2]
[360156959,1746581441707,-450.0,0.00019577,2]
[360156960,1746581441719,-450.0,0.00019577,2]
[360156961,1746581441730,-490.0,0.00019577,2]
[360156962,1746581441739,-450.0,0.00019577,2]
[360156963,1746581441749,-450.0,0.00019577,2]
[360156964,1746581441760,-203.85622897,0.00019577,2]
[360156965,1746581441769,-217.48385166,0.00019577,2]
[360156966,1746581441779,-450.0,0.00019577,2]
[360156967,1746581441789,-450.0,0.00019577,2]
[360156968,1746581441799,-537.74348617,0.00019577,2]
[360156969,1746581441809,-450.0,0.00019577,2]
[360156970,1746581441818,-450.0,0.00019577,2]
[360156971,1746581441828,-450.0,0.00019577,2]
[360156972,1746581441838,-450.0,0.00019577,2]
[360156973,1746581441847,-513.19383191,0.00019577,2]
[360156974,1746581441860,-450.0,0.00019577,2]
[360156975,1746581441870,-450.0,0.00019577,2]
[360156976,1746581441879,-450.0,0.00019577,2]
[360156977,1746581441888,-450.0,0.00019577,2]
[360156978,1746581441898,-450.0,0.00019577,2]
[360156979,1746581441907,-450.0,0.00019577,2]
[360156980,1746581441917,-450.0,0.00019577,2]
[360156981,1746581441926,-450.0,0.00019577,2]
[360156982,1746581441936,-450.0,0.00019577,2]
[360156983,1746581441946,-450.0,0.00019577,2]
[360156984,1746581441955,-429.87056663,0.00019577,2]
[360156985,1746581441964,-495.42494486,0.00019577,2]
[360156986,1746581441973,-450.0,0.00019577,2]
[360156987,1746581441982,-478.57796843,0.00019577,2]
[360156988,1746581441992,-450.0,0.00019577,2]
[360156989,1746581442002,-542.29934466,0.00019577,2]
[360156990,1746581442011,-474.47695917,0.00019577,2]
[360156991,1746581442021,-450.0,0.00019577,2]
[360156992,1746581442031,-430.29395076,0.00019577,2]
[360156993,1746581442041,-354.49626892,0.00019577,2]
[360156994,1746581442050,-317.74525821,0.00019577,2]
[360156995,1746581442059,-450.0,0.00019577,2]
[360156996,1746581442070,-458.36355577,0.00019577,2]
[360156997,1746581442079,-450.0,0.00019577,2]
[360156998,1746581442089,-468.816192,0.00019577,2]
[360156999,1746581442098,-450.0,0.00019577,2]
[360157000,1746581442108,-500.0,0.00019577,2]
[360157001,1746581442117,-450.0,0.00019577,2]
[360157002,1746581442126,-450.0,0.00019577,2]
[360157003,1746581442135,-450.0,0.00019577,2]
[360157004,1746581442144,-470.0,0.00019577,2]
[360157005,1746581442153,-573.44,0.00019577,2]
[360157006,1746581442162,-474.3212282,0.00019577,2]
[360157007,1746581442172,-450.0,0.00019577,2]
[360157008,1746581442181,-450.0,0.00019577,2]
[360157009,1746581442190,-450.0,0.00019577,2]
[360157010,1746581442199,-450.0,0.00019577,2]
[360157011,1746581442208,-450.0,0.00019577,2]
[360157012,1746581442218,-450.0,0.00019577,2]
[360157013,1746581442227,-478.70018162,0.00019577,2]
[360157014,1746581442236,-437.69851992,0.00019577,2]
[360157015,1746581442246,-450.0,0.00019577,2]
[360157016,1746581442255,-470.0,0.00019577,2]
[360157017,1746581442266,-476.55805052,0.00019577,2]
[360157018,1746581442275,-450.0,0.00019577,2]
[360157019,1746581442284,-450.0,0.00019577,2]
[360157020,1746581442293,-450.0,0.00019577,2]
[360157021,1746581442303,-450.0,0.00019577,2]
[360157022,1746581442312,-282.66690996,0.00019577,2]
[360157023,1746581442322,-471.54271815,0.00019577,2]
[360157024,1746581442331,-450.0,0.00019577,2]
[360157026,1746581442341,-486.58631479,0.00019577,2]
[360157028,1746581442351,-450.0,0.00019577,2]
[360157030,1746581442360,-548.84529819,0.00019577,2]
[360157032,1746581442370,-450.0,0.00019577,2]
[360157033,1746581442379,-441.24685172,0.00019577,2]
[360157034,1746581442389,-536.02996085,0.00019577,2]
[360157035,1746581442398,-454.09562415,0.00019577,2]
[360157037,1746581442409,-541.20042224,0.00019577,2]
[360157038,1746581442419,-462.92375013,0.00019577,2]
[360157040,1746581442430,-450.0,0.00019577,2]
[360157042,1746581442440,-550.0,0.00019577,2]
[360157044,1746581442450,-465.68252577,0.00019577,2]
[360157046,1746581442460,-450.0,0.00019577,2]
[360157048,1746581442469,-473.45611367,0.00019577,2]
[360157050,1746581442478,-450.0,0.00019577,2]
[360157052,1746581442487,-468.42068234,0.00019577,2]
[360157053,1746581442496,-450.0,0.00019577,2]
[360157054,1746581442505,-450.0,0.00019577,2]
[360157055,1746581442515,-450.0,0.00019577,2]
[360157056,1746581442524,-517.95443247,0.00019577,2]
[360157057,1746581442533,-450.0,0.00019577,2]
[360157058,1746581442542,-462.39,0.00019577,2]
[360157059,1746581442551,-450.0,0.00019577,2]
[360157060,1746581442560,-450.0,0.00019577,2]
[360157061,1746581442570,-450.0,0.00019577,2]
[360157062,1746581442579,-450.0,0.00019577,2]
[360157063,1746581442589,-450.0,0.00019577,2]
[360157064,1746581442599,-450.0,0.00019577,2]
[360157065,1746581442608,-450.0,0.00019577,2]
[360157066,1746581442617,-470.0,0.00019577,2]
[360157067,1746581442627,-450.0,0.00019577,2]
[360157068,1746581442636,-519.45054606,0.00019577,2]
[360157069,1746581442645,-450.0,0.00019577,2]
[360157070,1746581442654,-450.0,0.00019577,2]
[360157071,1746581442664,-450.0,0.00019577,2]
[360157072,1746581442673,-450.0,0.00019577,2]
[360157073,1746581442682,-450.0,0.00019577,2]
[360157074,1746581442692,-530.00059875,0.00019577,2]
[360157075,1746581442701,-450.11929238,0.00019577,2]
[360157076,1746581442710,-230.63795249,0.00019577,2]
[360157077,1746581442720,-450.0,0.00019577,2]
[360157078,1746581442729,-450.0,0.00019577,2]
[360157079,1746581442738,-450.0,0.00019577,2]
[360157080,1746581442749,-450.0,0.00019577,2]
[360157081,1746581442758,-520.0,0.00019577,2]
[360157082,1746581442767,-450.0,0.00019577,2]
[360157083,1746581442778,-450.0,0.00019577,2]
[360157084,1746581442787,-500.0,0.00019577,2]
[360157085,1746581442796,-450.0,0.00019577,2]
[360157086,1746581442806,-192.58353523,0.00019577,2]
[360157087,1746581442816,-450.0,0.00019577,2]
[360157088,1746581442826,-450.0,0.00019577,2]
[360157089,1746581442837,-450.0,0.00019577,2]
[360157090,1746581442846,-450.0,0.00019577,2]
[360157091,1746581442859,-450.0,0.00019577,2]
[360157092,1746581442868,-450.0,0.00019577,2]
[360157093,1746581442877,-450.0,0.00019577,2]
[360157094,1746581442887,-450.0,0.00019577,2]
[360157095,1746581442896,-450.0,0.00019577,2]
[360157096,1746581442905,-490.0,0.00019577,2]
[360157097,1746581442915,-450.0,0.00019577,2]
[360157098,1746581442924,-450.0,0.00019577,2]
[360157099,1746581442933,-450.0,0.00019577,2]
[360157100,1746581442943,-450.0,0.00019577,2]
[360157101,1746581442953,-450.0,0.00019577,2]
[360157102,1746581442963,-450.0,0.00019577,2]
[360157103,1746581442972,-450.0,0.00019577,2]
[360157104,1746581442981,-450.0,0.00019577,2]
[360157105,1746581442990,-450.0,0.00019577,2]
[360157106,1746581443000,-450.0,0.00019577,2]
[360157107,1746581443009,-450.0,0.00019577,2]
[360157108,1746581443018,-450.0,0.00019577,2]
[360157109,1746581443027,-538.7954801,0.00019577,2]
[360157110,1746581443037,-450.0,0.00019577,2]
[360157111,1746581443046,-450.0,0.00019577,2]
[360157112,1746581443055,-450.0,0.00019577,2]
[360157113,1746581443065,-530.0,0.00019577,2]
[360157114,1746581443074,-450.0,0.00019577,2]
[360157115,1746581443083,-414.76443573,0.00019577,2]
[360157116,1746581443093,-450.0,0.00019577,2]
[360157117,1746581443102,-450.0,0.00019577,2]
[360157118,1746581443112,-490.0,0.00019577,2]
[360157119,1746581443121,-450.0,0.00019577,2]
[360157120,1746581443131,-450.0,0.00019577,2]
[360157121,1746581443140,-450.0,0.00019577,2]
[360157122,1746581443150,-450.0,0.00019577,2]
[360157123,1746581443159,-450.0,0.00019577,2]
[360157124,1746581443168,-456.13585188,0.00019577,2]
[360157125,1746581443178,-554.47165926,0.00019577,2]
[360157126,1746581443188,-475.96,0.00019577,2]
[360157127,1746581443198,-450.0,0.00019577,2]
[360157128,1746581443207,-538.72,0.00019577,2]
[360157129,1746581443216,-538.72,0.00019577,2]
[360157130,1746581443226,-450.0,0.00019577,2]
[360157131,1746581443235,-450.0,0.00019577,2]
[360157132,1746581443245,-450.0,0.00019577,2]
[360157133,1746581443254,-450.0,0.00019577,2]
[360157134,1746581443263,-450.0,0.00019577,2]
[360157135,1746581443272,-450.0,0.00019577,2]
[360157136,1746581443282,-450.0,0.00019577,2]
[360157137,1746581443291,-450.0,0.00019577,2]
[360157138,1746581443300,-450.0,0.00019577,2]
[360157139,1746581443310,-450.0,0.00019577,2]
[360157140,1746581443320,-450.0,0.00019577,2]
[360157141,1746581443330,-450.0,0.00019577,2]
[360157142,1746581443340,-450.0,0.00019577,2]
[360157143,1746581443350,-403.13100663,0.00019577,2]
[360157144,1746581443360,-450.0,0.00019577,2]
[360157145,1746581443369,-450.0,0.00019577,2]
[360157146,1746581443378,-643.89,0.00019577,2]
[360157147,1746581443388,-643.89,0.00019577,2]
[360157148,1746581443397,-378.93834135,0.00019577,2]
[360157149,1746581443406,-450.0,0.00019577,2]
[360157150,1746581443416,-450.0,0.00019577,2]
[360157151,1746581443425,-450.0,0.00019577,2]
[360157152,1746581443435,-450.0,0.00019577,2]
[360157153,1746581443444,-450.0,0.00019577,2]
[360157154,1746581443454,-450.0,0.00019577,2]
[360157155,1746581443464,-450.0,0.00019577,2]
[360157156,1746581443473,-450.0,0.00019577,2]
[360157157,1746581443483,-450.0,0.00019577,2]
[360157158,1746581443492,-572.2,0.00019577,2]
[360157159,1746581443501,-572.2,0.00019577,2]
[360157160,1746581443511,-319.06708293,0.00019577,2]
[360157161,1746581443520,-450.0,0.00019577,2]
[360157162,1746581443530,-227.8999941,0.00019577,2]
[360157163,1746581443539,-530.13,0.00019577,2]
[360157164,1746581443548,-530.13,0.00019577,2]
[360157165,1746581443674,-450.0,0.00019577,2]
[360157166,1746581443684,-450.0,0.00019577,2]
[360157167,1746581443694,-450.0,0.00019577,2]
[360157168,1746581443703,-450.0,0.00019577,2]
[360157169,1746581443712,-450.0,0.00019577,2]
[360157170,1746581443722,-450.0,0.00019577,2]
[360157171,1746581443732,-450.0,0.00019577,2]
[360157172,1746581443741,-450.0,0.00019577,2]
[360157173,1746581443751,-450.0,0.00019577,2]
[360157174,1746581443760,-450.0,0.00019577,2]
[360157175,1746581443769,-450.0,0.00019577,2]
[360157176,1746581443779,-450.0,0.00019577,2]
[360157177,1746581443788,-450.0,0.00019577,2]
[360157178,1746581443797,-450.0,0.00019577,2]
[360157179,1746581443806,-450.0,0.00019577,2]
[360157180,1746581443815,-450.0,0.00019577,2]
[360157181,1746581443825,-450.0,0.00019577,2]
[360157182,1746581443834,-450.0,0.00019577,2]
[360157183,1746581443843,-490.0,0.00019577,2]
[360157184,1746581443854,-544.55,0.00019577,2]
[360157185,1746581443864,-544.55,0.00019577,2]
[360157186,1746581443874,-552.18,0.00019577,2]
[360157187,1746581443883,-552.18,0.00019577,2]
[360157188,1746581443892,-450.0,0.00019577,2]
[360157189,1746581443902,-450.0,0.00019577,2]
[360157190,1746581443912,-450.0,0.00019577,2]
[360157191,1746581443921,-450.0,0.00019577,2]
[360157192,1746581443931,-450.0,0.00019577,2]
[360157193,1746581443940,-450.0,0.00019577,2]
[360157194,1746581443950,-450.0,0.00019577,2]
[360157195,1746581443959,-450.0,0.00019577,2]
[360157196,1746581443968,-450.0,0.00019577,2]
[360157197,1746581443978,-387.72136,0.00019577,2]
[360157198,1746581443987,-450.0,0.00019577,2]
[360157199,1746581443997,-450.0,0.00019577,2]
[360157200,1746581444006,-252.77343852,0.00019577,2]
[360157201,1746581444015,-461.34320713,0.00019577,2]
[360157202,1746581444025,-450.0,0.00019577,2]
[360157203,1746581444034,-450.0,0.00019577,2]
[360157204,1746581444043,-450.0,0.00019577,2]
[360157205,1746581444053,-450.0,0.00019577,2]
[360157206,1746581444062,-450.0,0.00019577,2]
[360157207,1746581444072,-450.0,0.00019577,2]
[360157208,1746581444082,-450.0,0.00019577,2]
[360157209,1746581444091,-526.54037002,0.00019577,2]
[360157210,1746581444101,-450.0,0.00019577,2]
[360157211,1746581444110,-450.0,0.00019577,2]
[360157212,1746581444121,-450.0,0.00019577,2]
[360157213,1746581444131,-450.0,0.00019577,2]
[360157214,1746581444140,-450.0,0.00019577,2]
[360157215,1746581444150,-450.0,0.00019577,2]
[360157216,1746581444160,-450.0,0.00019577,2]
[360157217,1746581444169,-475.61672099,0.00019577,2]
[360157218,1746581444178,-226.15070798,0.00019577,2]
[360157219,1746581444187,-197.67838666,0.00019577,2]
[360157220,1746581444197,-450.0,0.00019577,2]
[360157221,1746581444206,-450.0,0.00019577,2]
[360157222,1746581444215,-450.0,0.00019577,2]
[360157223,1746581444224,-450.0,0.00019577,2]
[360157224,1746581444233,-450.0,0.00019577,2]
[360157225,1746581444243,-450.0,0.00019577,2]
[360157226,1746581444252,-470.0,0.00019577,2]
[360157227,1746581444262,-927.83,0.00019577,2]
[360157228,1746581444272,-927.83,0.00019577,2]
[360157229,1746581444281,-450.0,0.00019577,2]
[360157230,1746581444290,-1031.47,0.00019577,2]
[360157231,1746581444300,-1031.47,0.00019577,2]
[360157232,1746581444311,-450.0,0.00019577,2]
[360157233,1746581444320,-450.0,0.00019577,2]
[360157234,1746581444331,-921.84,0.00019577,2]
[360157235,1746581444340,-921.84,0.00019577,2]
[360157236,1746581444350,-450.0,0.00019577,2]
[360157237,1746581444359,-178.04704092,0.00019577,2]
[360157238,1746581444369,-450.0,0.00019577,2]
[360157239,1746581444380,-289.32815742,0.00019577,2]
[360157240,1746581444389,-450.0,0.00019577,2]
[360157241,1746581444399,-450.0,0.00019577,2]
[360157242,1746581444410,-568.81496416,0.00019577,2]
[360157243,1746581444420,-450.0,0.00019577,2]
[360157244,1746581444431,-450.0,0.00019577,2]
[360157245,1746581444441,-330.0,0.00019577,2]
[360157246,1746581444451,-500.0,0.00019577,2]
[360157247,1746581444461,-450.0,0.00019577,2]
[360157248,1746581444471,-532.13,0.00019577,2]
[360157249,1746581444480,-450.0,0.00019577,2]
[360157250,1746581444489,-450.0,0.00019577,2]
[360157251,1746581444498,-450.0,0.00019577,2]
[360157252,1746581444507,-450.0,0.00019577,2]
[360157253,1746581444516,-450.0,0.00019577,2]
[360157254,1746581444526,-994.3,0.00019577,2]
[360157255,1746581444535,-994.3,0.00019577,2]
[360157256,1746581444544,-703.93,0.00019577,2]
[360157257,1746581444554,-703.93,0.00019577,2]